[Event "*** Titled Tuesday Blitz"]
[Site "Chess.com"]
[Date "2018.09.04"]
[Round "8"]
[White "novocane"]
[Black "twitchTriniCupid"]
[Result "1/2-1/2"]
[WhiteElo "2126"]
[BlackElo "2199"]
[TimeControl "180+2"]
[EndTime "15:28:06 PDT"]
[Termination "Game drawn by agreement"]

1. d4 {[%clk 0:03:01.8]} 1... Nf6 {[%clk 0:03:00.8]} 2. c4 {[%clk 0:03:02.8]}
2... e6 {[%clk 0:03:02.2]} 3. Nc3 {[%clk 0:03:03.8]} 3... Bb4 {[%clk 0:03:03.3]}
4. e3 {[%clk 0:03:05.2]} 4... O-O {[%clk 0:03:04.1]} 5. Ne2 {[%clk 0:03:06.2]}
5... c5 {[%clk 0:03:05.5]} 6. a3 {[%clk 0:03:07.4]} 6... cxd4 {[%clk 0:03:06.4]}
7. exd4 {[%clk 0:03:08.1]} 7... Be7 {[%clk 0:03:04]} 8. g3 {[%clk 0:02:54.3]}
8... Qc7 {[%clk 0:02:59.7]} 9. b3 {[%clk 0:02:49.7]} 9... d5 {[%clk 0:02:47.7]}
10. Bf4 {[%clk 0:02:49.7]} 10... Qd8 {[%clk 0:02:31]} 11. Bxb8 {[%clk
0:02:37.2]} 11... Rxb8 {[%clk 0:02:30.6]} 12. c5 {[%clk 0:02:38.4]} 12... Ne4
{[%clk 0:02:11.3]} 13. Nxe4 {[%clk 0:02:23.8]} 13... dxe4 {[%clk 0:02:13.2]} 14.
Bg2 {[%clk 0:02:24.9]} 14... e5 {[%clk 0:02:10]} 15. b4 {[%clk 0:02:00.5]} 15...
exd4 {[%clk 0:01:52]} 16. Bxe4 {[%clk 0:01:58.9]} 16... Bf6 {[%clk 0:01:47.9]}
17. Qd3 {[%clk 0:01:54.8]} 17... g6 {[%clk 0:01:37.4]} 18. O-O {[%clk
0:01:52.7]} 18... Re8 {[%clk 0:01:35.4]} 19. Rfd1 {[%clk 0:01:48.2]} 19... Qe7
{[%clk 0:01:26]} 20. f3 {[%clk 0:01:38.1]} 20... Be6 {[%clk 0:01:21.5]} 21. Nf4
{[%clk 0:01:32.5]} 21... Red8 {[%clk 0:01:17.5]} 22. Nxe6 {[%clk 0:01:26.8]}
22... Qxe6 {[%clk 0:01:18.5]} 23. Re1 {[%clk 0:01:11.8]} 23... Qh3 {[%clk
0:00:48.8]} 24. Ra2 {[%clk 0:00:55.8]} 24... Kg7 {[%clk 0:00:49.4]} 25. Rae2
{[%clk 0:00:55.3]} 25... Qd7 {[%clk 0:00:38.2]} 26. f4 {[%clk 0:00:46.8]} 26...
h6 {[%clk 0:00:37]} 27. b5 {[%clk 0:00:39.9]} 27... Rbc8 {[%clk 0:00:28.6]} 28.
c6 {[%clk 0:00:40.2]} 28... bxc6 {[%clk 0:00:29.5]} 29. bxc6 {[%clk 0:00:41.1]}
29... Qd6 {[%clk 0:00:29.9]} 30. Bg2 {[%clk 0:00:37.1]} 30... Rc7 {[%clk
0:00:30.2]} 31. Rd1 {[%clk 0:00:34.8]} 31... Be7 {[%clk 0:00:24]} 32. a4 {[%clk
0:00:34.1]} 32... Qb4 {[%clk 0:00:17.7]} 33. Qb5 {[%clk 0:00:26.8]} 33... Qc3
{[%clk 0:00:10.8]} 34. Red2 {[%clk 0:00:24.4]} 34... Bf6 {[%clk 0:00:10.8]} 35.
Rd3 {[%clk 0:00:25.1]} 35... Qc2 {[%clk 0:00:10.8]} 36. h4 {[%clk 0:00:21.8]}
36... h5 {[%clk 0:00:11]} 37. f5 {[%clk 0:00:21.3]} 37... Re8 {[%clk 0:00:11.6]}
38. R3d2 {[%clk 0:00:20.1]} 38... Qxf5 {[%clk 0:00:11.5]} 39. Qxf5 {[%clk
0:00:20.8]} 39... gxf5 {[%clk 0:00:13.4]} 40. Rb1 {[%clk 0:00:18.5]} 40... Re5
{[%clk 0:00:13.5]} 41. Rb7 {[%clk 0:00:18.1]} 41... Ree7 {[%clk 0:00:13.7]} 42.
Bh3 {[%clk 0:00:17.1]} 42... Be5 {[%clk 0:00:12.5]} 43. Rxc7 {[%clk 0:00:13.5]}
43... Rxc7 {[%clk 0:00:11.3]} 44. Bg2 {[%clk 0:00:14.9]} 44... Kf6 {[%clk
0:00:10.8]} 45. Kf2 {[%clk 0:00:15.5]} 45... Ke6 {[%clk 0:00:11.1]} 46. Ke2
{[%clk 0:00:16.8]} 46... Kd6 {[%clk 0:00:12.1]} 47. Kd3 {[%clk 0:00:17.7]} 47...
Kc5 {[%clk 0:00:12.1]} 48. Re2 {[%clk 0:00:18.2]} 48... Bxg3 {[%clk 0:00:12.7]}
49. Rc2+ {[%clk 0:00:17.2]} 49... Kd6 {[%clk 0:00:13.2]} 50. Rc4 {[%clk
0:00:17.5]} 50... Be5 {[%clk 0:00:13.2]} 51. Rb4 {[%clk 0:00:18.8]} 51... f4
{[%clk 0:00:13.2]} 52. Bf3 {[%clk 0:00:19.8]} 52... f6 {[%clk 0:00:14.5]} 53.
Rb5 {[%clk 0:00:21]} 53... Ke6 {[%clk 0:00:14.4]} 54. Bxh5 {[%clk 0:00:20.6]}
54... f5 {[%clk 0:00:15.6]} 55. Bf3 {[%clk 0:00:21.2]} 55... Kf6 {[%clk
0:00:16.6]} 56. h5 {[%clk 0:00:22.6]} 56... Rg7 {[%clk 0:00:16.8]} 57. h6 {[%clk
0:00:23.5]} 57... Rh7 {[%clk 0:00:17.9]} 58. Rb7 {[%clk 0:00:23.5]} 58... Bc7
{[%clk 0:00:17.3]} 59. Kxd4 {[%clk 0:00:21.9]} 59... Ke6 {[%clk 0:00:18.5]} 60.
Bd5+ {[%clk 0:00:21.8]} 60... Kd6 {[%clk 0:00:19.4]} 61. Bf3 {[%clk 0:00:20.9]}
61... Rxh6 {[%clk 0:00:20.2]} 62. Rb5 {[%clk 0:00:20.1]} 62... Rh3 {[%clk
0:00:20.9]} 63. Rd5+ {[%clk 0:00:20.6]} 63... Ke6 {[%clk 0:00:21.8]} 64. Bg2
{[%clk 0:00:20.7]} 64... Rg3 {[%clk 0:00:22.3]} 65. Bf1 {[%clk 0:00:21.5]} 65...
f3 {[%clk 0:00:21.9]} 66. Bc4 {[%clk 0:00:22.4]} 66... Kf6 {[%clk 0:00:22.7]}
67. Rd8 {[%clk 0:00:23.1]} 67... Rg7 {[%clk 0:00:23.1]} 68. Rd7 {[%clk
0:00:23.9]} 68... Rxd7+ {[%clk 0:00:23.2]} 69. cxd7 {[%clk 0:00:25.2]} 69... Kg5
{[%clk 0:00:23.4]} 70. Ke3 {[%clk 0:00:20]} 70... Kg4 {[%clk 0:00:24.5]} 71. Kf2
{[%clk 0:00:21.2]} 71... Bb6+ {[%clk 0:00:25.5]} 72. Kf1 {[%clk 0:00:22.3]}
72... Kg3 {[%clk 0:00:27]} 73. Be6 {[%clk 0:00:22.4]} 73... f4 {[%clk 0:00:28]}
74. Bc4 {[%clk 0:00:22.3]} 74... Kg4 {[%clk 0:00:27.6]} 75. Bb5 {[%clk
0:00:23.2]} 75... Kf5 {[%clk 0:00:27.9]} 76. Bc6 {[%clk 0:00:24.4]} 76... Kg4
{[%clk 0:00:29]} 77. Bb5 {[%clk 0:00:25.2]} 77... Kf5 {[%clk 0:00:20]} 78. Bc6
{[%clk 0:00:26.4]} 78... Ke6 {[%clk 0:00:21.2]} 79. Bb5 {[%clk 0:00:27.6]} 79...
Kd5 {[%clk 0:00:21.7]} 80. Ke1 {[%clk 0:00:27.6]} 80... Kc5 {[%clk 0:00:20.8]}
81. Kf1 {[%clk 0:00:28]} 81... Kd6 {[%clk 0:00:19.7]} 82. Ke1 {[%clk 0:00:28.4]}
82... Kc5 {[%clk 0:00:19.6]} 83. Kf2 {[%clk 0:00:28.5]} 83... a6 {[%clk
0:00:18.7]} 84. Bxa6 {[%clk 0:00:29.3]} 84... Kb4+ {[%clk 0:00:16.9]} 85. Kxf3
{[%clk 0:00:30.1]} 85... Kxa4 {[%clk 0:00:18.4]} 86. Kxf4 {[%clk 0:00:30.2]}
86... Bd8 {[%clk 0:00:19.5]} 87. Ke5 {[%clk 0:00:30.7]} 87... Ka5 {[%clk
0:00:20.9]} 88. Bf1 {[%clk 0:00:31.5]} 88... Kb6 {[%clk 0:00:22.3]} 89. Ke6
{[%clk 0:00:32.6]} 89... Kc7 {[%clk 0:00:23.2]} 90. Bh3 {[%clk 0:00:33.9]} 90...
Bh4 {[%clk 0:00:24.6]} 91. Kf7 {[%clk 0:00:35.8]} 91... Bd8 {[%clk 0:00:25.8]}
92. Ke8 {[%clk 0:00:37.7]} 92... Bh4 {[%clk 0:00:27.3]} 93. d8=Q+ {[%clk
0:00:39.3]} 93... Bxd8 {[%clk 0:00:28.6]} 94. Bg4 {[%clk 0:00:38.5]} 1/2-1/2

[Event "*** Titled Tuesday Blitz"]
[Site "Chess.com"]
[Date "2018.09.04"]
[Round "8"]
[White "MITerryble"]
[Black "Alexander_Moskalenko"]
[Result "1/2-1/2"]
[WhiteElo "2760"]
[BlackElo "2805"]
[TimeControl "180+2"]
[EndTime "15:31:31 PDT"]
[Termination "Game drawn by 50-move rule"]

1. e4 {[%clk 0:03:01.9]} 1... e5 {[%clk 0:02:58]} 2. Nf3 {[%clk 0:03:02.5]} 2...
Nc6 {[%clk 0:02:58.2]} 3. c3 {[%clk 0:03:03.8]} 3... Nf6 {[%clk 0:02:58.4]} 4.
d4 {[%clk 0:03:05]} 4... Nxe4 {[%clk 0:02:54.4]} 5. d5 {[%clk 0:03:05.9]} 5...
Ne7 {[%clk 0:02:55.9]} 6. Nxe5 {[%clk 0:03:06.5]} 6... Ng6 {[%clk 0:02:57]} 7.
Qe2 {[%clk 0:03:06.8]} 7... Qe7 {[%clk 0:02:52.2]} 8. Qxe4 {[%clk 0:03:04.7]}
8... Qxe5 {[%clk 0:02:53.3]} 9. Bd3 {[%clk 0:02:59.1]} 9... Bc5 {[%clk
0:02:46.2]} 10. O-O {[%clk 0:02:58.5]} 10... O-O {[%clk 0:02:47.2]} 11. Nd2
{[%clk 0:02:52.9]} 11... d6 {[%clk 0:02:44.2]} 12. Nf3 {[%clk 0:02:51.5]} 12...
Qxe4 {[%clk 0:02:40.1]} 13. Bxe4 {[%clk 0:02:53.4]} 13... Re8 {[%clk 0:02:41.6]}
14. Re1 {[%clk 0:02:47.1]} 14... Bg4 {[%clk 0:02:42.4]} 15. Bd2 {[%clk
0:02:45.8]} 15... a5 {[%clk 0:02:37.4]} 16. Nd4 {[%clk 0:02:44.2]} 16... a4
{[%clk 0:02:35.8]} 17. Bc2 {[%clk 0:02:31.6]} 17... Bd7 {[%clk 0:02:33.3]} 18.
Bd3 {[%clk 0:02:21.4]} 18... Ne5 {[%clk 0:02:31.7]} 19. Bf1 {[%clk 0:02:20.3]}
19... Ng4 {[%clk 0:02:27.9]} 20. g3 {[%clk 0:01:59.3]} 20... Nf6 {[%clk
0:02:25.2]} 21. Bg2 {[%clk 0:02:00.4]} 21... Kf8 {[%clk 0:02:21.7]} 22. h3
{[%clk 0:01:29.8]} 22... h6 {[%clk 0:02:22.6]} 23. g4 {[%clk 0:01:30.4]} 23...
Bb6 {[%clk 0:02:08.5]} 24. Bf3 {[%clk 0:01:10.6]} 24... Re5 {[%clk 0:01:55.2]}
25. Rxe5 {[%clk 0:01:04.8]} 25... dxe5 {[%clk 0:01:57.1]} 26. Nc2 {[%clk
0:01:06.2]} 26... e4 {[%clk 0:01:50.2]} 27. Bg2 {[%clk 0:01:06.8]} 27... Bb5
{[%clk 0:01:51.3]} 28. Ne3 {[%clk 0:00:56.8]} 28... Bd3 {[%clk 0:01:51.3]} 29.
Rc1 {[%clk 0:00:31.1]} 29... a3 {[%clk 0:01:43.8]} 30. b3 {[%clk 0:00:29.7]}
30... Bxe3 {[%clk 0:01:44.7]} 31. Bxe3 {[%clk 0:00:30.6]} 31... Nxd5 {[%clk
0:01:46.6]} 32. Bd2 {[%clk 0:00:30.3]} 32... b5 {[%clk 0:01:34.6]} 33. c4 {[%clk
0:00:27.7]} 33... bxc4 {[%clk 0:01:35.7]} 34. bxc4 {[%clk 0:00:29.6]} 34... Nb6
{[%clk 0:01:37.3]} 35. Bb4+ {[%clk 0:00:26.4]} 35... Kg8 {[%clk 0:01:35]} 36.
Rc3 {[%clk 0:00:27.8]} 36... Ra4 {[%clk 0:01:22.8]} 37. Bxa3 {[%clk 0:00:27.8]}
37... Nxc4 {[%clk 0:01:24.1]} 38. Bc5 {[%clk 0:00:28.3]} 38... Rxa2 {[%clk
0:01:24.7]} 39. Kh2 {[%clk 0:00:29.6]} 39... Nd6 {[%clk 0:01:20.7]} 40. Kg3
{[%clk 0:00:26.4]} 40... Rc2 {[%clk 0:01:20.8]} 41. Rxc2 {[%clk 0:00:27.2]}
41... Bxc2 {[%clk 0:01:22.7]} 42. Kf4 {[%clk 0:00:28.7]} 42... f6 {[%clk
0:01:21.9]} 43. h4 {[%clk 0:00:23.9]} 43... Kf7 {[%clk 0:01:22.6]} 44. g5 {[%clk
0:00:25]} 44... hxg5+ {[%clk 0:01:23]} 45. hxg5 {[%clk 0:00:26.9]} 45... f5
{[%clk 0:00:45.9]} 46. Ke5 {[%clk 0:00:23.5]} 46... Kg6 {[%clk 0:00:45.4]} 47.
Kf4 {[%clk 0:00:22.9]} 47... Kf7 {[%clk 0:00:32.7]} 48. Ke5 {[%clk 0:00:21.4]}
48... Ke7 {[%clk 0:00:32.7]} 49. g6 {[%clk 0:00:19.4]} 49... Bd1 {[%clk
0:00:29.9]} 50. Bh3 {[%clk 0:00:19.3]} 50... Bg4 {[%clk 0:00:30.2]} 51. Bf1
{[%clk 0:00:16]} 51... Kd7 {[%clk 0:00:29.3]} 52. Bg2 {[%clk 0:00:09.3]} 52...
Nc4+ {[%clk 0:00:25.2]} 53. Kf4 {[%clk 0:00:09.8]} 53... Ke6 {[%clk 0:00:24.9]}
54. Bd4 {[%clk 0:00:11]} 54... Bh5 {[%clk 0:00:21]} 55. Kg5 {[%clk 0:00:12.3]}
55... Bxg6 {[%clk 0:00:07.8]} 56. Kxg6 {[%clk 0:00:13.6]} 56... Ne5+ {[%clk
0:00:09.7]} 57. Kxg7 {[%clk 0:00:13.4]} 57... c5 {[%clk 0:00:07.5]} 58. Bxc5
{[%clk 0:00:13.3]} 58... Nd3 {[%clk 0:00:09]} 59. Ba7 {[%clk 0:00:11.9]} 59...
Ke5 {[%clk 0:00:09.4]} 60. Kh6 {[%clk 0:00:11.8]} 60... f4 {[%clk 0:00:10.4]}
61. Kg5 {[%clk 0:00:10.4]} 61... e3 {[%clk 0:00:10.4]} 62. fxe3 {[%clk
0:00:09.1]} 62... fxe3 {[%clk 0:00:12.3]} 63. Bxe3 {[%clk 0:00:10.2]} 63... Ne1
{[%clk 0:00:13.9]} 64. Ba8 {[%clk 0:00:09.6]} 64... Nc2 {[%clk 0:00:14.9]} 65.
Bf2 {[%clk 0:00:10.3]} 65... Nd4 {[%clk 0:00:15.5]} 66. Bg3+ {[%clk 0:00:11.4]}
66... Ke6 {[%clk 0:00:16.9]} 67. Be4 {[%clk 0:00:09.8]} 67... Nb5 {[%clk
0:00:16.9]} 68. Kf4 {[%clk 0:00:10]} 68... Nc3 {[%clk 0:00:16.6]} 69. Bf3 {[%clk
0:00:10.6]} 69... Nd5+ {[%clk 0:00:17.2]} 70. Ke4 {[%clk 0:00:11.8]} 70... Nf6+
{[%clk 0:00:18.4]} 71. Kd4 {[%clk 0:00:12.9]} 71... Kf5 {[%clk 0:00:19.8]} 72.
Be2 {[%clk 0:00:13.4]} 72... Nd7 {[%clk 0:00:19.4]} 73. Bc7 {[%clk 0:00:10.3]}
73... Nf6 {[%clk 0:00:20]} 74. Bf3 {[%clk 0:00:11.6]} 74... Nd7 {[%clk
0:00:20.8]} 75. Be4+ {[%clk 0:00:12.6]} 75... Ke6 {[%clk 0:00:21.3]} 76. Bd5+
{[%clk 0:00:12.5]} 76... Kf5 {[%clk 0:00:22.3]} 77. Bg2 {[%clk 0:00:14]} 77...
Nf6 {[%clk 0:00:24.2]} 78. Bh3+ {[%clk 0:00:15.1]} 78... Kg5 {[%clk 0:00:25.5]}
79. Bd8 {[%clk 0:00:15.3]} 79... Kg6 {[%clk 0:00:26]} 80. Ke5 {[%clk 0:00:17.2]}
80... Nh5 {[%clk 0:00:25.1]} 81. Bf5+ {[%clk 0:00:16]} 81... Kf7 {[%clk
0:00:23.7]} 82. Bg4 {[%clk 0:00:16.7]} 82... Kg6 {[%clk 0:00:24.3]} 83. Bh4
{[%clk 0:00:17.6]} 83... Ng7 {[%clk 0:00:24.5]} 84. Bf3 {[%clk 0:00:18.9]} 84...
Kf7 {[%clk 0:00:21.5]} 85. Be4 {[%clk 0:00:18.6]} 85... Nh5 {[%clk 0:00:22]} 86.
Bg5 {[%clk 0:00:19]} 86... Ng7 {[%clk 0:00:22.9]} 87. Bf3 {[%clk 0:00:19.4]}
87... Kg6 {[%clk 0:00:23.8]} 88. Bd8 {[%clk 0:00:20]} 88... Kf7 {[%clk
0:00:25.5]} 89. Be4 {[%clk 0:00:20.7]} 89... Nh5 {[%clk 0:00:26.3]} 90. Bb1
{[%clk 0:00:16.6]} 90... Ng7 {[%clk 0:00:26.7]} 91. Ba2+ {[%clk 0:00:12.9]}
91... Kg6 {[%clk 0:00:27.3]} 92. Bd5 {[%clk 0:00:13.9]} 92... Nh5 {[%clk
0:00:27.7]} 93. Bc6 {[%clk 0:00:14.8]} 93... Kf7 {[%clk 0:00:28.3]} 94. Bd7
{[%clk 0:00:14.2]} 94... Ng7 {[%clk 0:00:29.1]} 95. Bg4 {[%clk 0:00:13.1]} 95...
Kg6 {[%clk 0:00:30.2]} 96. Bf6 {[%clk 0:00:14.2]} 96... Kf7 {[%clk 0:00:31.2]}
97. Bf3 {[%clk 0:00:14]} 97... Kg6 {[%clk 0:00:30.8]} 98. Bd5 {[%clk 0:00:14.6]}
98... Nh5 {[%clk 0:00:31.5]} 99. Bh4 {[%clk 0:00:13.3]} 99... Ng7 {[%clk
0:00:32.1]} 100. Bc4 {[%clk 0:00:12.7]} 100... Nh5 {[%clk 0:00:32.6]} 101. Bb5
{[%clk 0:00:11.8]} 101... Ng7 {[%clk 0:00:33.4]} 102. Ba4 {[%clk 0:00:13]}
102... Kf7 {[%clk 0:00:34.4]} 103. Bc2 {[%clk 0:00:14.2]} 103... Nh5 {[%clk
0:00:34.5]} 104. Kf5 {[%clk 0:00:15.6]} 104... Ng7+ {[%clk 0:00:34.4]} 105. Kg4
{[%clk 0:00:17.2]} 105... Ke6 {[%clk 0:00:31.1]} 106. Kg5 {[%clk 0:00:17.2]}
106... Ne8 {[%clk 0:00:29.6]} 107. Bg3 {[%clk 0:00:18.3]} 107... Nd6 {[%clk
0:00:30.2]} 108. Bb3+ {[%clk 0:00:19.7]} 108... Ke7 {[%clk 0:00:31.1]} 109. Kf4
{[%clk 0:00:19.7]} 109... Kf6 {[%clk 0:00:25.9]} 110. Bh4+ {[%clk 0:00:20.4]}
110... Kg6 {[%clk 0:00:27.2]} 111. Be6 {[%clk 0:00:21.3]} 111... Nf7 {[%clk
0:00:27.8]} 112. Bf5+ {[%clk 0:00:21.5]} 112... Kg7 {[%clk 0:00:28.7]} 113. Be7
{[%clk 0:00:23.4]} 113... Nh6 {[%clk 0:00:27.9]} 114. Be6 {[%clk 0:00:24.6]}
114... Kg6 {[%clk 0:00:28.6]} 115. Bc4 {[%clk 0:00:24.1]} 115... Nf7 {[%clk
0:00:17.8]} 116. Bd3+ {[%clk 0:00:23.8]} 116... Kg7 {[%clk 0:00:18.6]} 117. Kf5
{[%clk 0:00:25.7]} 117... Nh6+ {[%clk 0:00:19.6]} 118. Ke6 {[%clk 0:00:27.3]}
118... Ng4 {[%clk 0:00:20.8]} 119. Bg5 {[%clk 0:00:27.1]} 119... Nh6 {[%clk
0:00:20.1]} 120. Bf6+ {[%clk 0:00:28.3]} 120... Kf8 {[%clk 0:00:19.4]} 121. Bg6
{[%clk 0:00:29.3]} 121... Ng8 {[%clk 0:00:19.6]} 122. Be5 {[%clk 0:00:27.4]}
122... Nh6 {[%clk 0:00:19.7]} 123. Bc3 {[%clk 0:00:25.3]} 123... Ng8 {[%clk
0:00:18.4]} 124. Bh7 {[%clk 0:00:24.4]} 124... Nh6 {[%clk 0:00:18.9]} 125. Kf6
{[%clk 0:00:24.9]} 125... Ng8+ {[%clk 0:00:19]} 126. Kg5 {[%clk 0:00:26.2]}
126... Ne7 {[%clk 0:00:19.5]} 127. Be4 {[%clk 0:00:25.7]} 127... Kf7 {[%clk
0:00:20.4]} 128. Bc2 {[%clk 0:00:26.5]} 128... Ke6 {[%clk 0:00:20.4]} 129. Bb3+
{[%clk 0:00:28.4]} 129... Kd7 {[%clk 0:00:21.7]} 130. Kf6 {[%clk 0:00:29.1]}
130... Nc6 {[%clk 0:00:22.6]} 131. Bb2 {[%clk 0:00:28.7]} 131... Kd6 {[%clk
0:00:22.3]} 132. Ba3+ {[%clk 0:00:30]} 1/2-1/2

[Event "*** Titled Tuesday Blitz"]
[Site "Chess.com"]
[Date "2018.09.04"]
[Round "9"]
[White "Orest_Vovk"]
[Black "Thjop"]
[Result "1-0"]
[WhiteElo "2447"]
[BlackElo "2527"]
[TimeControl "180+2"]
[EndTime "15:34:50 PDT"]
[Termination "Orest_Vovk won by resignation"]

1. g4 {[%clk 0:03:01.9]} 1... e6 {[%clk 0:02:50.9]} 2. Bg2 {[%clk 0:03:02.5]}
2... c5 {[%clk 0:02:51.7]} 3. h3 {[%clk 0:03:03.2]} 3... Nc6 {[%clk 0:02:52.3]}
4. c4 {[%clk 0:03:02.9]} 4... h5 {[%clk 0:02:49.7]} 5. gxh5 {[%clk 0:02:59.3]}
5... Nf6 {[%clk 0:02:46.7]} 6. h6 {[%clk 0:02:58.6]} 6... gxh6 {[%clk 0:02:28]}
7. d3 {[%clk 0:02:59.2]} 7... Rg8 {[%clk 0:02:18.9]} 8. Bxc6 {[%clk 0:02:57.7]}
8... bxc6 {[%clk 0:02:09.5]} 9. Nf3 {[%clk 0:02:56.8]} 9... Qc7 {[%clk
0:02:01.2]} 10. Nc3 {[%clk 0:02:56.9]} 10... d5 {[%clk 0:02:01.1]} 11. Qa4
{[%clk 0:02:49.7]} 11... Bd7 {[%clk 0:01:59.3]} 12. Bd2 {[%clk 0:02:48.3]} 12...
d4 {[%clk 0:01:38.7]} 13. Ne4 {[%clk 0:02:47.4]} 13... Nxe4 {[%clk 0:01:38.7]}
14. dxe4 {[%clk 0:02:49.3]} 14... Qe5 {[%clk 0:01:32.1]} 15. Nxe5 {[%clk
0:02:49.1]} 1-0

[Event "*** Titled Tuesday Blitz"]
[Site "Chess.com"]
[Date "2018.09.04"]
[Round "9"]
[White "Vegan4future"]
[Black "novocane"]
[Result "1-0"]
[WhiteElo "2392"]
[BlackElo "2121"]
[TimeControl "180+2"]
[EndTime "15:36:16 PDT"]
[Termination "Vegan4future won by resignation"]

1. d4 {[%clk 0:02:53.7]} 1... Nf6 {[%clk 0:03:00.1]} 2. c4 {[%clk 0:02:54.5]}
2... e6 {[%clk 0:03:01.4]} 3. Nf3 {[%clk 0:02:55.6]} 3... d5 {[%clk 0:03:02.3]}
4. g3 {[%clk 0:02:55.2]} 4... Bb4+ {[%clk 0:03:00.6]} 5. Bd2 {[%clk 0:02:55.2]}
5... Qe7 {[%clk 0:03:01.4]} 6. Bg2 {[%clk 0:02:56.2]} 6... Ne4 {[%clk
0:02:46.1]} 7. O-O {[%clk 0:02:58.1]} 7... Nxd2 {[%clk 0:02:40.7]} 8. Nbxd2
{[%clk 0:03:00]} 8... c6 {[%clk 0:02:28.1]} 9. e4 {[%clk 0:03:00.9]} 9... dxe4
{[%clk 0:02:23.2]} 10. Nxe4 {[%clk 0:03:02.8]} 10... O-O {[%clk 0:02:17.3]} 11.
a3 {[%clk 0:03:03.9]} 11... Ba5 {[%clk 0:02:17.9]} 12. b4 {[%clk 0:03:04.9]}
12... Bc7 {[%clk 0:02:19.2]} 13. Qb3 {[%clk 0:03:04.4]} 13... Nd7 {[%clk
0:02:19.2]} 14. Rad1 {[%clk 0:03:05.1]} 14... Nf6 {[%clk 0:02:18.3]} 15. Nc5
{[%clk 0:03:02.9]} 15... b6 {[%clk 0:01:47.6]} 16. Nd3 {[%clk 0:03:02.8]} 16...
b5 {[%clk 0:01:25.7]} 17. Nfe5 {[%clk 0:03:01.1]} 17... bxc4 {[%clk 0:01:22.5]}
18. Qxc4 {[%clk 0:03:03]} 18... Nd5 {[%clk 0:01:18.4]} 19. Nxc6 {[%clk
0:03:01.2]} 19... Qd6 {[%clk 0:01:05.6]} 20. Bxd5 {[%clk 0:03:02.1]} 20... exd5
{[%clk 0:01:05]} 21. Qxd5 {[%clk 0:03:03.1]} 21... Bb7 {[%clk 0:01:02.8]} 22.
Qxd6 {[%clk 0:03:03.6]} 22... Bxd6 {[%clk 0:01:03.8]} 23. Nce5 {[%clk
0:03:04.2]} 23... a5 {[%clk 0:01:02.6]} 24. Nc5 {[%clk 0:03:05]} 24... Bd5
{[%clk 0:01:01.6]} 25. b5 {[%clk 0:03:05.5]} 25... f6 {[%clk 0:00:55.1]} 26.
Ned7 {[%clk 0:03:04.8]} 26... Rf7 {[%clk 0:00:50.9]} 27. Nb6 {[%clk 0:03:05.7]}
1-0

[Event "*** Titled Tuesday Blitz"]
[Site "Chess.com"]
[Date "2018.09.04"]
[Round "9"]
[White "biostatistician"]
[Black "dimke2802"]
[Result "0-1"]
[WhiteElo "2466"]
[BlackElo "2457"]
[TimeControl "180+2"]
[EndTime "15:36:34 PDT"]
[Termination "dimke2802 won by resignation"]

1. d4 {[%clk 0:03:01.8]} 1... Nf6 {[%clk 0:02:59.9]} 2. Nf3 {[%clk 0:03:03.7]}
2... g6 {[%clk 0:03:00.8]} 3. c4 {[%clk 0:03:02.4]} 3... Bg7 {[%clk 0:03:01.7]}
4. Nc3 {[%clk 0:03:04.3]} 4... d6 {[%clk 0:03:03]} 5. e4 {[%clk 0:03:05.5]} 5...
O-O {[%clk 0:03:03.7]} 6. Be2 {[%clk 0:03:07.4]} 6... e5 {[%clk 0:03:04.7]} 7.
dxe5 {[%clk 0:03:09.3]} 7... dxe5 {[%clk 0:03:05.3]} 8. Qxd8 {[%clk 0:03:11.2]}
8... Rxd8 {[%clk 0:03:06.6]} 9. Bg5 {[%clk 0:03:11.6]} 9... Re8 {[%clk
0:03:03.7]} 10. Nd5 {[%clk 0:03:12.8]} 10... Nxd5 {[%clk 0:03:04.6]} 11. cxd5
{[%clk 0:03:14.7]} 11... c6 {[%clk 0:03:06.1]} 12. Bc4 {[%clk 0:03:16.1]} 12...
b5 {[%clk 0:03:07.7]} 13. Bb3 {[%clk 0:03:17.3]} 13... a5 {[%clk 0:03:08.7]} 14.
a4 {[%clk 0:03:17.3]} 14... Bd7 {[%clk 0:03:02.8]} 15. d6 {[%clk 0:03:13.9]}
15... Be6 {[%clk 0:02:40.6]} 16. Bxe6 {[%clk 0:02:54.7]} 16... Rxe6 {[%clk
0:02:41.1]} 17. Be7 {[%clk 0:02:56.2]} 17... Bf6 {[%clk 0:02:33.3]} 18. Bxf6
{[%clk 0:02:49.5]} 18... Rxf6 {[%clk 0:02:32.9]} 19. Nxe5 {[%clk 0:02:21.5]}
19... Rxd6 {[%clk 0:02:29.3]} 20. Rd1 {[%clk 0:02:10.9]} 20... Rxd1+ {[%clk
0:02:26]} 21. Kxd1 {[%clk 0:02:12.8]} 21... f6 {[%clk 0:02:26.4]} 22. Nd3 {[%clk
0:02:12.4]} 22... Nd7 {[%clk 0:02:05.2]} 23. Kc2 {[%clk 0:02:11.8]} 23... Nb6
{[%clk 0:02:05.9]} 24. Nc5 {[%clk 0:02:05.6]} 24... Rd8 {[%clk 0:01:52]} 25. f3
{[%clk 0:02:04.9]} 25... Rd4 {[%clk 0:01:39.2]} 26. b3 {[%clk 0:01:59.1]} 26...
bxa4 {[%clk 0:01:38.1]} 27. bxa4 {[%clk 0:01:59.3]} 27... Rc4+ {[%clk
0:01:37.6]} 0-1

[Event "*** Titled Tuesday Blitz"]
[Site "Chess.com"]
[Date "2018.09.04"]
[Round "9"]
[White "arna"]
[Black "Nakachuk"]
[Result "0-1"]
[WhiteElo "2098"]
[BlackElo "2664"]
[TimeControl "180+2"]
[EndTime "15:36:41 PDT"]
[Termination "Nakachuk won by resignation"]

1. e4 {[%clk 0:02:59.4]} 1... c5 {[%clk 0:02:58.1]} 2. Nf3 {[%clk 0:02:59.8]}
2... e6 {[%clk 0:02:59.3]} 3. d4 {[%clk 0:02:59.2]} 3... cxd4 {[%clk 0:03:01.2]}
4. Nxd4 {[%clk 0:03:00.6]} 4... Nc6 {[%clk 0:03:03.1]} 5. Nc3 {[%clk 0:03:01.2]}
5... Qc7 {[%clk 0:03:04.5]} 6. g3 {[%clk 0:03:02.3]} 6... a6 {[%clk 0:03:04.8]}
7. Bg2 {[%clk 0:03:03.3]} 7... Nge7 {[%clk 0:03:05.4]} 8. Nde2 {[%clk
0:02:49.2]} 8... Ng6 {[%clk 0:03:02.9]} 9. O-O {[%clk 0:02:30.3]} 9... Nge5
{[%clk 0:03:01.7]} 10. h3 {[%clk 0:02:13.8]} 10... h5 {[%clk 0:03:00.5]} 11. b3
{[%clk 0:02:08.2]} 11... Bc5 {[%clk 0:02:54.5]} 12. Kh1 {[%clk 0:01:59.6]} 12...
b5 {[%clk 0:02:48]} 13. Bb2 {[%clk 0:01:41.4]} 13... Bb7 {[%clk 0:02:37.7]} 14.
a3 {[%clk 0:01:17.7]} 14... Ng4 {[%clk 0:02:15.1]} 15. hxg4 {[%clk 0:00:54.1]}
15... hxg4+ {[%clk 0:02:17]} 16. Kg1 {[%clk 0:00:51.4]} 16... Ne5 {[%clk
0:02:15.2]} 17. Nf4 {[%clk 0:00:28.8]} 17... g5 {[%clk 0:02:16]} 18. Nd3 {[%clk
0:00:29.8]} 18... Nf3+ {[%clk 0:02:16.4]} 19. Bxf3 {[%clk 0:00:29.3]} 19...
Qxg3+ {[%clk 0:02:17.2]} 0-1